bitfinex/quotes_ETHUSD_20260312
["timestamp","ask_amount","ask_price","bid_price","bid_amount"]
[1773327106100,1.22309197,2044.0,2043.1,1.22363075]
[1773327106623,1.22309197,2044.0,2043.0,1.22364483]
[1773327106624,3.74253231,2044.0,2043.0,1.22364483]
[1773327107800,3.74253231,2044.0,2043.0,2.59864483]
[1773327108118,2.51944034,2043.9,2042.9,1.22480727]
[1773327108428,5.18115378,2043.6,2042.9,0.0011]
[1773327108803,2.51944034,2043.5,2042.9,0.0011]
[1773327109406,2.51944034,2043.2,2042.7,0.0011]
[1773327110414,3.74304545,2043.2,2042.7,0.0011]
[1773327110617,4.89383622,2043.4,2042.7,0.0011]
[1773327111134,1.22345111,2043.4,2042.7,0.0011]
[1773327111597,2.45336279,2043.6,2042.7,0.0011]
[1773327111798,2.6633424,2043.9,2042.7,0.0011]
[1773327111799,1.22316675,2043.9,2042.9,2.66345189]
[1773327112414,1.22316675,2043.9,2043.0,1.22369065]
[1773327112910,1.22316675,2043.9,2043.1,0.0011]
[1773327113106,0.001,2043.3,2043.1,0.0011]
[1773327113705,3.67652954,2043.9,2043.1,0.0011]
[1773327114721,2.45336279,2043.7,2043.1,0.0011]
[1773327115124,1.22316675,2043.9,2043.1,0.0011]
[1773327115632,3.95236279,2044.1,2043.1,0.0011]
[1773327115931,4.89241105,2044.0,2043.1,0.0011]
[1773327117618,1.22309197,2044.0,2043.1,0.0011]
[1773327117814,1.22285267,2044.4,2043.2,2.66345189]
[1773327118211,1.22285267,2044.4,2043.2,1.369]
[1773327118931,4.89125034,2044.5,2043.4,1.22345111]
[1773327119137,7.34461313,2044.5,2043.4,1.22345111]
[1773327120247,1.22274889,2044.6,2043.6,2.66345189]
[1773327120429,1.22371293,2044.7,2043.9,2.66345189]
[1773327120630,2.45336279,2044.6,2043.6,2.66345189]
[1773327120841,1.22279285,2044.5,2043.4,4.89373024]
[1773327121016,2.45336279,2044.4,2043.4,4.89373024]
[1773327121733,4.89117143,2044.6,2043.8,2.66345189]
[1773327121734,1.22277269,2044.6,2043.8,2.66345189]
[1773327122118,0.001,2044.7,2044.1,2.66345189]
[1773327122319,1.58632584,2045.0,2044.2,1.367]
[1773327122519,2.45336279,2044.9,2043.9,4.03045189]
[1773327122741,1.58632584,2045.0,2044.0,1.22309197]
[1773327122942,4.03968863,2045.0,2043.9,1.2231048]
[1773327123243,2.45336279,2044.9,2043.9,1.2231048]
[1773327123442,2.45336279,2044.9,2044.0,2.66345189]
[1773327123740,1.58633936,2045.0,2044.3,2.66345189]
[1773327123941,1.58633507,2045.0,2044.3,2.66345189]
[1773327124240,1.58633507,2045.0,2044.2,1.366]
[1773327124739,1.58633507,2045.0,2044.3,1.22291248]
[1773327125038,0.36382698,2045.0,2044.3,1.22291248]
[1773327125247,1.58632247,2045.0,2044.3,3.88636437]
[1773327125541,2.66345189,2045.5,2044.3,3.88636437]
[1773327125542,4.88821759,2045.8,2044.9,2.66345189]
[1773327125751,7.34158038,2045.8,2044.6,5.30278775]
[1773327125927,2.45336279,2045.7,2044.4,1.365]
[1773327126251,1.22201583,2045.8,2044.7,5.30278775]
[1773327126448,2.71776397,2046.3,2045.3,2.66345189]
[1773327126749,2.45336279,2046.5,2045.4,1.365]
[1773327126750,1.22170238,2046.4,2045.4,1.365]
[1773327127042,3.0138869,2046.6,2045.6,2.63933586]
[1773327127043,0.38093218,2046.6,2045.6,2.63933586]
[1773327127219,1.22155876,2046.6,2045.7,1.365]
[1773327127414,1.22155876,2046.6,2045.5,1.22219506]
[1773327127618,3.67492155,2046.6,2045.4,2.58721888]
[1773327127842,2.45336279,2046.5,2045.4,2.58721888]
[1773327128347,2.45336279,2046.2,2044.9,1.22255367]
[1773327128849,2.45336279,2046.2,2044.7,4.89021468]
[1773327128850,1.22207557,2045.7,2044.7,1.22267325]
[1773327129047,1.22207557,2045.7,2044.7,3.88612514]
[1773327129430,3.67517748,2046.2,2045.0,2.66345189]
[1773327129840,3.67517748,2046.2,2045.1,1.365]
[1773327130142,3.67516726,2046.2,2045.1,1.365]
[1773327130446,3.67516726,2046.2,2044.7,3.86200911]
[1773327130447,2.45336279,2045.9,2044.5,4.89110662]
[1773327130816,5.11681468,2045.5,2044.1,1.22303214]
[1773327131020,2.45336279,2045.4,2044.2,1.364]
[1773327131221,1.22207557,2045.7,2044.4,2.66345189]
[1773327131423,3.67543836,2045.7,2044.4,2.66345189]
[1773327131918,2.45336279,2045.6,2044.2,2.66345189]
[1773327132218,2.45336279,2045.6,2044.3,1.364]
[1773327132649,2.45336279,2045.6,2044.2,2.66345189]
[1773327132818,2.45336279,2045.5,2044.3,1.364]
[1773327133022,2.45336279,2045.3,2044.2,2.66345189]
[1773327133347,2.45336279,2045.0,2043.6,3.6056492]
[1773327133549,2.45336279,2044.7,2043.6,3.6056492]
[1773327133747,2.45336279,2044.7,2043.6,3.60564219]
[1773327133953,2.45336279,2044.7,2043.6,6.26909408]
[1773327134130,2.45336279,2045.1,2043.9,2.66345189]
[1773327135260,2.45336279,2044.5,2043.6,2.38232636]
[1773327135471,2.45336279,2044.5,2043.5,1.22334579]
[1773327135869,2.45336279,2044.1,2043.1,0.0011]
[1773327136174,2.45336279,2044.1,2043.1,1.22472055]
[1773327137059,1.22321166,2043.8,2043.1,0.0011]
[1773327138165,4.89243911,2044.0,2043.1,0.0011]
[1773327138369,1.22285267,2044.4,2043.1,0.0011]
[1773327138582,2.45336279,2044.6,2043.1,0.0011]
[1773327138583,2.45336279,2044.6,2043.7,0.0011]
[1773327138725,4.15845189,2045.1,2043.7,0.0011]
[1773327138726,0.001,2044.8,2043.8,2.66345189]
[1773327139187,0.001,2044.8,2044.1,2.66345189]
[1773327139353,2.45436279,2044.8,2043.8,1.22317539]
[1773327139552,2.45436279,2044.8,2043.7,0.0011]
[1773327139753,2.45436279,2044.8,2043.7,1.22435929]
[1773327139942,2.45436279,2044.8,2043.7,1.22436031]
[1773327140737,2.45436279,2044.8,2044.0,2.3933634]
[1773327140738,0.001,2044.8,2044.0,2.3933634]
[1773327141054,2.04802974,2045.2,2044.0,5.0351208]
[1773327141236,2.04802974,2045.2,2044.1,1.22303214]
[1773327141445,2.58577731,2045.1,2044.1,1.22303214]
[1773327141827,2.58577731,2045.1,2043.7,1.22433868]
[1773327142574,0.82562233,2045.2,2044.0,2.3933634]
[1773327142776,0.82562233,2045.2,2044.6,2.3933634]
[1773327142989,4.19877731,2046.0,2044.7,1.362]
[1773327142990,3.80770111,2046.0,2044.7,1.362]
[1773327143200,4.88699763,2046.3,2045.0,1.22249388]
[1773327143503,4.88618801,2046.6,2045.2,2.3933634]
[1773327143990,4.88618801,2046.6,2045.0,2.58449388]
[1773327143991,2.58577731,2046.5,2045.0,2.58449388]
[1773327144362,2.58577731,2046.5,2045.0,1.22249388]
[1773327145068,7.27955141,2046.6,2044.8,4.89035826]
[1773327145069,2.58577731,2046.2,2044.8,4.89035826]
[1773327145275,2.58577731,2046.0,2044.7,1.22261345]
[1773327145477,2.58577731,2045.9,2044.7,1.22261345]
[1773327146162,2.58577731,2045.9,2044.7,2.58361345]
[1773327146362,2.58577731,2045.9,2044.7,1.22261345]
[1773327146979,1.22183666,2046.1,2044.7,1.22261345]
[1773327147378,4.88734665,2046.2,2044.9,2.3933634]
[1773327147579,1.22177695,2046.2,2044.9,5.0351208]
[1773327148396,4.88708554,2046.3,2045.0,2.79124239]
[1773327148397,1.22175364,2046.3,2045.0,2.79124239]
[1773327149094,2.58577731,2046.2,2045.0,1.361]
[1773327149498,1.22183666,2046.1,2045.1,1.22243411]
[1773327149994,2.58577731,2046.0,2044.7,1.22267325]
[1773327150300,1.22183666,2046.1,2044.8,0.14948499]
[1773327150610,4.8871078,2046.3,2045.0,2.79124239]
[1773327150766,2.58577731,2046.2,2044.7,1.22267325]
[1773327151166,4.8871078,2046.3,2044.9,5.0351208]
[1773327151396,4.8871078,2046.3,2045.0,2.79124239]
[1773327151612,4.8871078,2046.3,2045.0,1.22249388]
[1773327151613,1.22183666,2046.1,2045.0,1.22249388]
[1773327151911,2.58577731,2046.0,2044.8,1.36]
[1773327152120,1.22183666,2046.1,2044.4,1.22285267]
[1773327152121,2.58577731,2045.8,2044.4,1.22285267]
[1773327152280,2.58577731,2045.7,2044.4,1.22285267]
[1773327153899,1.22213531,2045.6,2044.4,1.22285267]
[1773327154270,3.80791262,2045.6,2044.4,1.22285267]
[1773327154473,3.80791262,2045.6,2044.5,1.36]
[1773327154707,4.88835919,2045.7,2044.5,1.36]
[1773327154708,4.88797835,2045.9,2044.6,2.6417574]
[1773327154906,2.58577731,2045.8,2044.7,1.359]
[1773327155619,4.88797835,2045.9,2044.7,1.359]
[1773327155909,0.001,2046.1,2045.0,2.3933634]
[1773327156085,0.001,2046.1,2045.0,5.0351208]
[1773327156280,2.58677731,2046.1,2045.1,1.359]
[1773327156785,0.001,2046.1,2045.1,1.359]
[1773327157406,0.001,2046.1,2044.9,1.22255367]
[1773327157407,2.58677731,2046.1,2044.9,1.22255367]
[1773327157708,2.58577731,2046.0,2044.7,2.58167325]
[1773327158013,2.58577731,2045.8,2044.5,1.359]
[1773327159368,2.58577731,2045.8,2044.4,4.89117143]
[1773327159574,2.58577731,2045.7,2044.4,6.25017143]
[1773327159787,2.58577731,2045.7,2044.6,2.65732784]
[1773327159973,1.22213531,2045.6,2044.4,6.25017143]
[1773327160196,2.58577731,2045.5,2044.4,6.25017143]
[1773327160403,3.80791262,2045.6,2044.4,6.25017143]
[1773327160595,2.58577731,2045.4,2044.2,2.58193378]
[1773327160779,2.58577731,2045.4,2044.5,2.65732784]
[1773327160979,1.22213531,2045.6,2044.3,0.14948499]
[1773327161180,2.58577731,2045.5,2044.2,3.88026162]
[1773327161381,2.58577731,2045.2,2044.1,0.0011]
[1773327161705,2.58577731,2045.2,2044.1,1.22412726]
[1773327162095,1.22243411,2045.1,2044.1,1.22412726]
[1773327164084,1.22255367,2044.9,2044.1,0.0011]
[1773327164708,7.45737142,2045.0,2044.2,2.65732784]
[1773327164709,1.22251487,2045.0,2044.2,2.65732784]
[1773327164911,1.22237433,2045.2,2044.2,2.65732784]
[1773327165110,2.71233152,2045.3,2044.2,2.65732784]
[1773327165410,1.22207557,2045.7,2044.5,2.65732784]
[1773327165610,1.22207557,2045.7,2044.2,5.31465568]
[1773327165611,2.56715674,2045.6,2044.2,2.65732784]
[1773327165814,2.56715674,2045.4,2044.3,1.359]
[1773327166020,1.22231457,2045.3,2044.4,1.22285267]
[1773327167218,1.22231457,2045.3,2044.3,2.58186442]
[1773327169328,1.22231457,2045.3,2044.3,1.22286442]
[1773327169640,2.56715674,2044.8,2044.1,0.0011]
[1773327170229,1.22267325,2044.7,2044.6,0.0011]
[1773327170538,1.22267325,2044.7,2044.1,0.0011]
[1773327170931,3.69387247,2044.7,2044.1,0.0011]
[1773327171839,1.22267325,2044.7,2044.1,0.0011]
[1773327172013,1.22249388,2045.0,2044.1,0.0011]
[1773327172215,3.6936931,2045.0,2044.1,0.0011]
[1773327172622,2.47119922,2044.9,2044.1,0.0011]
[1773327174515,6.3531149,2044.8,2044.1,0.0011]
[1773327176245,2.65930223,2044.5,2044.0,1.85438213]
[1773327176416,1.22273305,2044.6,2044.0,1.85438213]
[1773327176611,2.47119922,2044.4,2044.0,0.78585938]
[1773327176839,2.47119922,2044.4,2043.9,0.0011]
[1773327177258,7.87173305,2044.6,2043.6,0.0011]
[1773327177259,2.47119922,2044.1,2043.6,0.0011]
[1773327177429,2.65930223,2043.8,2043.2,0.0011]
[1773327177946,5.13050145,2043.8,2043.2,0.0011]
[1773327178124,2.47119922,2043.8,2043.2,0.0011]
[1773327178851,1.22327151,2043.7,2043.2,0.0011]
[1773327180459,7.55133279,2044.2,2043.2,0.0011]
[1773327180460,7.36099554,2045.1,2043.3,2.53472996]
[1773327180653,2.47119922,2045.0,2043.8,2.65930223]
[1773327180820,4.88979632,2045.1,2043.9,3.75788177]
[1773327181246,1.22243411,2045.1,2044.0,2.53472996]
[1773327181449,1.22243411,2045.1,2044.1,3.88872996]
[1773327181835,3.88173634,2045.1,2044.1,2.53472996]
[1773327182250,4.88973644,2045.3,2044.1,2.53472996]
[1773327182251,4.88949735,2045.3,2044.1,2.53472996]
[1773327182431,5.13050145,2045.1,2044.0,1.354]
[1773327182759,2.47119922,2045.0,2043.9,1.22315181]
[1773327182968,1.22255367,2044.9,2043.8,4.89260727]
[1773327183836,2.65930223,2044.5,2043.4,1.22345111]
[1773327184031,2.47119922,2044.7,2043.4,1.22345111]
[1773327184867,2.47119922,2044.7,2044.0,0.0011]
[1773327185069,1.22273305,2044.6,2044.0,0.0011]
[1773327186957,2.47119922,2044.6,2044.0,0.0011]
[1773327187839,4.89093221,2044.7,2044.0,0.0011]
[1773327188971,7.55023444,2044.7,2044.0,0.0011]
[1773327189474,4.89093221,2044.7,2044.0,0.0011]
[1773327189674,2.47119922,2044.6,2044.0,0.0011]
[1773327190041,7.55023444,2044.7,2044.0,0.0011]
[1773327190738,7.55023444,2044.7,2043.8,0.0011]
[1773327190739,5.13050145,2044.3,2043.8,0.0011]
[1773327191149,1.22297231,2044.2,2043.8,0.0011]
[1773327191952,3.88227454,2044.2,2043.8,0.0011]
[1773327192359,6.35347376,2044.2,2043.8,0.0011]
[1773327192657,2.47119922,2043.8,2043.5,0.0011]
[1773327192852,1.5,2043.7,2043.2,0.0011]
[1773327193100,1.22333137,2043.6,2043.2,0.0011]
[1773327193789,3.8826336,2043.6,2043.2,0.0011]
[1773327195260,3.8826336,2043.6,2042.9,0.0011]
[1773327195261,2.65930223,2043.3,2042.9,0.0011]
[1773327195451,2.47119922,2043.5,2042.9,0.0011]
[1773327197157,1.22345111,2043.4,2042.9,0.0011]
[1773327197400,1.504,2043.3,2042.9,0.0011]
[1773327197708,1.504,2043.3,2042.7,0.0011]
[1773327199300,2.65930223,2043.2,2043.1,0.0011]
[1773327199542,2.47119922,2043.5,2042.7,0.0011]
[1773327200035,2.47119922,2043.5,2042.9,0.0011]
[1773327200203,2.65930223,2043.3,2042.9,0.0011]
[1773327200399,1.508,2043.2,2042.9,0.0011]
[1773327200838,1.508,2043.2,2042.7,0.0011]
[1773327201012,1.508,2043.2,2042.4,0.0011]
[1773327201013,2.54601898,2042.9,2042.4,0.0011]
[1773327201209,2.54601898,2042.9,2042.2,0.8562355]
[1773327201210,1.22381045,2042.8,2042.2,1e-08]
[1773327201628,1.2237683,2042.9,2042.2,2.3367456]
[1773327201830,4.89431574,2043.2,2042.2,1e-08]
[1773327201831,1.22368786,2043.1,2042.2,1e-08]
[1773327202030,1.22368786,2043.1,2042.2,2.3367456]
[1773327203340,1.22368786,2043.1,2042.2,3.56086755]
[1773327204240,2.73260817,2043.2,2042.3,2.33674559]
[1773327204446,4.10142788,2043.8,2042.4,2.33674559]
[1773327204648,5.20532121,2043.6,2042.4,2.33674559]
[1773327205139,1.55539272,2043.8,2042.7,2.33674559]
[1773327205343,1.55539272,2043.8,2042.4,3.56079572]
[1773327205344,2.54601898,2043.6,2042.4,3.56079572]
[1773327205716,2.65930223,2043.4,2042.4,2.33674559]
[1773327205918,6.71732121,2043.4,2042.2,1.22416755]
[1773327206340,2.65930223,2043.1,2042.2,1e-08]
[1773327206548,2.54601898,2043.0,2042.2,1e-08]
[1773327206744,2.54601898,2043.0,2041.5,3.56133491]
[1773327206745,2.65930223,2042.5,2041.5,3.56133491]
[1773327207052,2.54601898,2042.6,2041.5,3.56132602]
[1773327207349,5.20532121,2042.1,2041.4,0.0011]
[1773327208145,2.73717001,2042.2,2041.4,0.0011]
[1773327208347,5.28318899,2042.2,2041.4,0.0011]
[1773327209452,5.20532121,2042.0,2041.4,0.0011]
[1773327209943,2.73717001,2042.2,2041.4,0.0011]
[1773327210341,2.54601898,2042.1,2041.4,0.0011]
[1773327210728,2.65930223,2041.9,2041.4,0.0011]
[1773327210919,2.54601898,2041.8,2041.2,0.0011]
[1773327211116,5.20532121,2041.6,2040.5,1.22514864]
[1773327211317,1.22476974,2041.2,2040.3,0.0011]
[1773327212021,4.89814492,2041.6,2040.4,2.33674559]
[1773327212673,2.73947426,2041.7,2040.7,2.33674559]
[1773327212847,4.89670574,2042.2,2041.0,2.33674559]
[1773327213412,4.89670574,2042.2,2041.1,3.56157533]
[1773327213722,4.89670574,2042.2,2041.4,0.0011]
[1773327213923,1.22417001,2042.2,2041.4,2.33784559]
[1773327214135,1.22417001,2042.2,2041.4,0.0011]
[1773327214536,4.89659523,2042.3,2041.4,0.0011]
[1773327214537,1.22415847,2042.3,2041.4,0.0011]
[1773327214944,4.06301898,2042.2,2041.4,0.0011]
[1773327215246,5.20532121,2042.1,2041.4,0.0011]
[1773327215454,1.22428991,2042.0,2041.4,0.0011]
[1773327215950,3.77030889,2042.0,2041.4,0.0011]
[1773327216256,2.54601898,2041.9,2041.1,0.0011]
[1773327216753,2.54601898,2041.8,2041.1,0.0011]
[1773327216957,1.518,2041.7,2041.1,0.0011]
[1773327217546,1.22452978,2041.6,2041.1,0.0011]
[1773327218542,1.22434987,2041.9,2041.1,0.0011]
[1773327219152,1.22434987,2041.9,2040.3,0.0011]
[1773327219153,2.54601898,2041.2,2040.3,0.0011]
[1773327219369,5.20532121,2041.0,2040.3,0.0011]
[1773327219662,1.2250098,2040.8,2040.3,0.0011]
[1773327221169,3.77102878,2040.8,2040.3,0.0011]
[1773327221472,1.22512986,2040.6,2040.0,0.1524]
[1773327221633,1.22512986,2040.6,2040.0,1.37788946]
[1773327221835,1.22512986,2040.6,2040.0,0.1524]
[1773327222640,3.77114884,2040.6,2039.8,0.0011]
[1773327222966,5.20532121,2040.4,2039.8,0.0011]
[1773327223137,2.65930223,2040.1,2039.1,2.06867854]
[1773327223336,2.65930223,2040.1,2039.1,3.2947007]
[1773327223537,1.22567044,2039.7,2038.5,4.90554738]
[1773327223939,1.22567044,2039.7,2038.9,2.51350711]
[1773327224945,5.24628496,2039.7,2038.5,4.90554738]
[1773327225139,2.65930223,2039.6,2038.5,4.90554738]
[1773327225338,5.24628496,2039.7,2038.5,4.90554738]
[1773327225660,2.74767044,2039.7,2038.6,2.51350711]
[1773327226056,2.49861452,2039.6,2038.5,4.90554738]
[1773327226457,2.74767044,2039.7,2038.6,5.17280934]
[1773327227063,5.24628496,2039.7,2038.8,0.0011]
[1773327227455,2.74767044,2039.7,2038.8,0.0011]
[1773327227771,2.49861452,2039.4,2038.8,0.0011]
[1773327228069,2.74767044,2039.7,2038.8,0.0011]
[1773327228268,0.53818106,2039.6,2038.8,0.0011]
[1773327229655,0.53818106,2039.6,2039.0,1.22609122]
[1773327229854,1.525,2040.1,2039.0,3.73959833]
[1773327230045,2.65930223,2040.6,2039.3,2.51350711]
[1773327230046,0.40804395,2040.5,2039.3,2.51350711]
[1773327230246,0.40804395,2040.5,2039.6,2.48995314]
[1773327230445,0.33289164,2040.5,2040.1,2.65930223]
[1773327230678,1.22490146,2041.0,2040.1,2.65930223]
[1773327230878,5.1955519,2041.8,2040.4,5.14925537]
[1773327231169,5.1955519,2041.8,2040.4,6.49025537]
[1773327231170,3.76071947,2041.7,2040.4,6.49025537]
[1773327231571,3.76071947,2041.7,2040.5,1.2251899]
[1773327231973,1.2244698,2041.7,2040.5,3.71514304]
[1773327232273,5.1955519,2041.5,2040.3,2.89403241]
[1773327232466,2.53624967,2041.5,2040.3,5.38398555]
[1773327232644,2.53624967,2041.5,2040.3,6.72398555]
[1773327233347,2.65930223,2041.8,2040.6,2.65930223]
[1773327233545,0.32864672,2041.9,2041.1,2.66568371]
[1773327233781,0.32864672,2041.9,2041.1,6.49563685]
[1773327233947,0.32864672,2041.9,2041.4,2.66568371]
[1773327234449,1.22398015,2042.6,2041.7,2.66568371]
[1773327234651,3.76022982,2042.6,2041.2,2.66568371]
[1773327234858,2.53624967,2042.5,2041.2,2.66568371]
[1773327235074,1.22398015,2042.6,2041.5,2.66568371]
[1773327235447,3.76022982,2042.6,2041.3,2.48995314]
[1773327235644,3.76022982,2042.6,2041.5,1.22458976]
[1773327235987,2.53624967,2042.5,2041.4,1.22460414]
[1773327236277,1.22398015,2042.6,2041.4,3.89028785]
[1773327236473,1.22398015,2042.6,2041.4,6.38024099]
[1773327236680,1.22390865,2042.7,2041.7,2.66568371]
[1773327236844,6.421328,2042.8,2042.0,2.66568371]
[1773327236845,1.526,2042.8,2042.0,2.66568371]
[1773327237051,0.001,2043.0,2042.3,2.66568371]
[1773327237260,3.76095217,2043.0,2041.8,2.66568371]
[1773327237851,2.53624967,2042.9,2040.7,2.48995314]
[1773327238052,2.53624967,2042.8,2041.4,2.66568371]
[1773327238250,2.53624967,2042.8,2041.4,4.00468371]
[1773327238854,2.53624967,2042.8,2041.7,2.66568371]
[1773327239163,1.2247025,2043.0,2042.0,2.66568371]
[1773327239968,0.001,2043.0,2042.1,1.22422995]
[1773327240166,0.001,2043.0,2042.2,1.339]
[1773327240367,0.001,2043.0,2042.2,4.00468371]
[1773327240971,0.001,2043.0,2041.8,5.15563685]
[1773327241177,0.001,2042.7,2041.9,6.23623784]
[1773327241504,0.001,2043.0,2042.0,2.66568371]
[1773327241654,0.001,2043.0,2041.9,6.23623784]
[1773327242058,0.001,2043.0,2041.8,6.37998672]
[1773327242059,2.53724967,2043.0,2041.8,1.22434987]
[1773327242596,2.53624967,2042.7,2041.8,1.22434987]
[1773327242769,2.53624967,2042.7,2041.7,1.22442374]
[1773327244354,0.001,2043.0,2041.8,5.15563685]
[1773327244355,1.22375055,2042.9,2041.8,5.15563685]
[1773327244559,0.3273576,2043.4,2042.7,2.66568371]
[1773327244754,1.526,2043.8,2042.5,1.339]
[1773327244755,2.74927151,2043.8,2042.5,1.339]
[1773327244968,4.89318134,2043.7,2042.5,1.339]
[1773327245373,4.89318134,2043.7,2042.2,2.08151596]
[1773327245374,5.20193338,2043.3,2042.2,2.08151596]
[1773327245561,2.53624967,2043.3,2042.2,2.08151596]
[1773327245764,2.53624967,2043.6,2042.2,4.74719967]
[1773327246064,4.89318134,2043.7,2042.2,4.74719967]
[1773327246065,4.89318134,2043.7,2042.5,2.66568371]
[1773327246394,2.53624967,2043.5,2042.6,1.22393028]
[1773327246964,4.89318134,2043.7,2042.6,1.22393028]
[1773327247161,10.02192911,2043.9,2042.8,2.66568371]
[1773327247162,3.75944233,2043.9,2042.8,2.66568371]
[1773327248162,3.75944233,2043.9,2042.7,1.339]
[1773327248503,2.53624967,2043.5,2042.3,1.22411007]
[1773327248659,2.53624967,2043.4,2042.3,1.22411007]
[1773327249063,2.53624967,2043.2,2041.8,1.22440983]
[1773327249271,5.20193338,2043.0,2041.8,1.22440983]
[1773327249474,2.53624967,2042.9,2041.8,1.22440983]
[1773327250279,2.53624967,2042.7,2041.8,1.22440983]
[1773327250992,2.53624967,2042.7,2041.7,4.89763933]
[1773327250993,2.53624967,2042.7,2041.7,1.22444469]
[1773327251165,5.20193338,2042.7,2041.7,1.22444469]
[1773327251365,2.53624967,2042.7,2041.7,1.22444469]
[1773327251967,2.53624967,2042.6,2041.6,2.56349884]
[1773327252273,2.53624967,2042.6,2041.2,2.66568371]
[1773327252274,2.53624967,2042.4,2041.2,2.66568371]
[1773327252475,2.53624967,2042.4,2041.3,1.22470974]
[1773327252681,2.53624967,2042.1,2041.1,1.339]
[1773327252994,2.53624967,2041.5,2040.6,2.56412673]
[1773327253382,2.53624967,2041.5,2040.4,1.22519852]
[1773327253603,2.53624967,2041.2,2040.3,2.22207399]
[1773327253892,2.53624967,2041.2,2040.3,3.44737963]
[1773327254499,3.76107941,2041.1,2040.3,2.22207399]
[1773327254865,2.53624967,2041.0,2040.3,2.22207399]
[1773327255692,2.53624967,2041.0,2040.3,3.44735712]
[1773327256084,1.22482974,2041.1,2040.3,3.44735712]
[1773327256871,1.22475299,2041.3,2040.3,3.44735712]
[1773327257066,7.43502739,2041.4,2040.3,3.44735712]
[1773327257067,3.76092123,2041.4,2040.3,3.44735712]
[1773327258204,2.53624967,2041.4,2040.3,3.44735712]
[1773327258382,2.53624967,2041.7,2040.3,3.44735712]
[1773327258902,2.53624967,2041.2,2040.3,3.44735712]
[1773327260285,2.63205649,2041.9,2040.4,1.34]
[1773327260286,3.76082662,2041.6,2040.4,1.34]
[1773327260669,1.22444291,2041.8,2040.6,4.91853014]
[1773327261069,4.89753992,2041.9,2040.6,4.91853014]
[1773327261270,4.89753992,2041.9,2040.7,1.22506982]
[1773327261475,2.41798369,2041.7,2040.5,1.2251899]
[1773327262410,2.41798369,2041.4,2040.4,2.56520837]
[1773327264320,3.64239352,2041.8,2040.4,2.56520837]
[1773327264474,2.41798369,2041.7,2040.4,2.56520837]
[1773327264675,1.22437475,2041.9,2040.7,2.51630916]
[1773327265011,2.41798369,2041.8,2040.4,2.56520837]
[1773327265373,2.41798369,2041.8,2040.4,5.08151753]
[1773327265877,2.41798369,2041.7,2040.4,2.56520837]
[1773327266316,2.41798369,2041.5,2040.4,2.56520837]
[1773327268111,1.22440983,2041.8,2040.6,2.40222098]
[1773327268408,3.64238024,2041.9,2040.8,1.2250098]
[1773327268609,3.64238024,2041.9,2040.9,1.341]
[1773327269279,2.41798369,2041.8,2040.9,1.341]
[1773327270498,1.2244698,2041.7,2041.0,1.22488975]
[1773327270677,3.64245349,2041.7,2040.9,2.56590763]
[1773327271480,1.22445706,2041.8,2040.9,2.56590763]
[1773327272707,3.6422736,2042.0,2040.9,2.56590763]
[1773327272909,2.41798369,2041.7,2040.6,4.90041832]
[1773327274307,2.41798369,2041.7,2040.7,2.40222098]
[1773327274702,3.64248275,2041.7,2040.8,1.2250098]
[1773327274905,2.41798369,2041.7,2040.9,1.343]
[1773327275304,3.64246539,2041.7,2040.9,1.343]
[1773327275498,2.41798369,2041.7,2040.9,1.343]
[1773327275700,5.16625716,2042.1,2041.1,2.66656692]
[1773327276228,0.5212259,2042.3,2041.5,2.66656692]
[1773327276416,1.74534158,2042.3,2041.2,2.51630916]
[1773327276784,1.74534158,2042.3,2041.3,1.22470974]
[1773327276980,4.16332527,2042.3,2041.3,1.22470974]
[1773327277811,0.5212259,2042.3,2041.3,1.22470974]
[1773327277984,0.5212259,2042.3,2041.4,3.85930916]
[1773327278198,1.7453592,2042.3,2041.5,5.18287608]
[1773327278525,1.7453592,2042.3,2041.5,2.51630916]
[1773327278830,1.74535656,2042.3,2041.6,1.22452978]
[1773327279038,1.74535656,2042.3,2041.4,1.2246097]
[1773327279732,1.74535656,2042.3,2041.2,2.66656692]
[1773327279932,1.74535656,2042.3,2041.2,1.22475354]
[1773327279933,2.41798369,2042.2,2041.2,1.22475354]
[1773327280605,5.08455061,2042.2,2041.1,4.89907897]
[1773327280815,5.08455061,2042.1,2040.8,2.51630916]
[1773327281010,1.22428991,2042.0,2040.9,1.22494977]
[1773327281211,2.41798369,2041.9,2040.9,1.22494977]
[1773327282140,1.22428991,2042.0,2041.1,5.18287608]
[1773327282637,3.26935579,2042.3,2041.4,2.66656692]
[1773327282842,3.26935579,2042.3,2041.4,5.18287608]
[1773327282843,0.5212259,2042.3,2041.4,5.18287608]
[1773327283024,1.74537977,2042.3,2041.5,1.22458976]
[1773327283213,0.5212259,2042.3,2041.7,2.66656692]
[1773327283415,0.5212259,2042.3,2041.8,3.7339834]
[1773327283635,2.74881216,2042.8,2042.0,2.66656692]
[1773327283838,2.74886008,2042.8,2042.0,2.66656692]
[1773327284332,1.22486008,2042.8,2042.0,2.66656692]
[1773327284655,1.22486008,2042.8,2041.8,2.3889834]
[1773327285016,0.001,2042.8,2041.9,1.22434987]
[1773327287136,0.001,2042.8,2041.9,3.61333327]
[1773327287312,0.001,2042.8,2042.1,2.66656692]
[1773327287517,0.001,2042.8,2042.0,2.3889834]
[1773327288429,0.001,2042.8,2041.9,1.22434987]
[1773327288430,1.22345111,2043.4,2042.3,5.05555032]
[1773327288625,1.22345111,2043.4,2042.3,6.40055032]
[1773327288829,1.22345111,2043.4,2042.4,2.3889834]
[1773327289045,1.22345111,2043.4,2042.6,2.66656692]
[1773327289249,2.413037,2043.6,2042.7,1.22387036]
[1773327289250,3.63641028,2043.6,2042.7,1.22387036]
[1773327289485,1.22327151,2043.7,2042.9,2.66656692]
[1773327289953,1.55306681,2043.8,2042.9,2.66656692]
[1773327290744,1.55306681,2043.8,2042.9,4.01256692]
[1773327290946,1.55305703,2043.8,2043.0,2.48490274]
[1773327291154,1.55303682,2043.8,2043.0,2.48490274]
[1773327291322,0.001,2043.5,2043.1,1.22363075]
[1773327292332,1.22317308,2043.9,2043.1,1.22363075]
[1773327293134,1.22317308,2043.9,2043.0,1.22364161]
[1773327293351,2.53009311,2044.2,2043.2,2.66656692]
[1773327293669,3.75311212,2044.2,2043.2,2.66656692]
[1773327293866,2.53009311,2044.1,2043.0,1.22364161]
[1773327294073,2.53009311,2044.1,2043.0,3.79266743]
[1773327294274,2.43424853,2043.9,2043.0,1.22364161]
[1773327294495,2.43424853,2043.6,2042.6,1.22388886]
[1773327294682,3.95724853,2043.6,2042.6,1.22388886]
[1773327294891,2.43424853,2043.5,2042.3,1.346]
[1773327295175,1.523,2043.6,2042.1,1.22419629]
[1773327295176,2.43424853,2043.3,2042.1,1.22419629]
[1773327295375,2.43424853,2043.1,2042.1,1.22419629]
[1773327295547,2.43424853,2043.1,2042.2,2.66299872]